bitfinex/quotes_ETHUSD_20220219
["timestamp","ask_amount","ask_price","bid_price","bid_amount"]
[1645244434109,0.9431633,2811.9,2811.6,0.27]
[1645244434553,0.9431633,2811.9,2811.7,0.88915]
[1645244434750,2.9949,2812.2,2811.5,0.66269285]
[1645244434751,2.9949,2812.2,2811.8,0.52]
[1645244434949,2.9949,2812.2,2811.9,0.52]
[1645244435550,9.3769,2812.6,2811.9,0.52]
[1645244435750,0.91833528,2812.3,2811.9,0.52]
[1645244436751,0.91833528,2812.3,2811.9,1.40909]
[1645244436955,0.91833528,2812.3,2811.9,2.03142]
[1645244437157,0.91833528,2812.3,2811.9,2.33142]
[1645244437352,0.91833528,2812.3,2811.9,2.63142]
[1645244437751,0.91833528,2812.3,2812.0,1.0]
[1645244438009,0.91833528,2812.3,2812.1,0.52]
[1645244438796,0.91833528,2812.3,2812.1,0.82]
[1645244439098,7.9979,2812.6,2812.1,0.82]
[1645244439296,1.50945199,2812.5,2812.1,0.82]
[1645244439595,1.50945199,2812.4,2812.1,0.82]
[1645244439800,1.2429,2812.9,2812.1,0.82]
[1645244439994,1.50944042,2812.8,2812.1,0.82]
[1645244440195,1.07072599,2812.4,2812.1,0.82]
[1645244440396,1.07072599,2812.4,2812.1,0.81850527]
[1645244441201,1.07072599,2812.4,2812.1,0.52]
[1645244441501,1.50955722,2812.3,2812.1,0.52]
[1645244441951,1.52440423,2812.3,2812.1,0.52]
[1645244442152,0.01484701,2812.3,2812.1,0.52]
[1645244443053,0.01484701,2812.3,2812.1,0.82]
[1645244446297,1.02526212,2812.3,2812.1,0.82]
[1645244447000,1.50952313,2812.2,2812.1,0.82]
[1645244449448,1.02526212,2812.3,2812.1,0.82]
[1645244450550,1.02526212,2812.3,2812.1,0.52]
[1645244451752,1.02526212,2812.3,2812.1,0.82]
[1645244454704,1.02526212,2812.3,2812.1,0.52]
[1645244455905,1.50958388,2812.2,2811.7,0.82]
[1645244456104,1.50958388,2812.2,2811.7,1.82]
[1645244456306,1.02526212,2812.3,2811.8,0.3]
[1645244456504,1.02526212,2812.3,2811.7,0.82]
[1645244456747,1.02526212,2812.3,2811.8,0.3]
[1645244456947,1.02526212,2812.3,2811.9,0.8891]
[1645244457247,1.02526212,2812.3,2811.9,1.7091]
[1645244457447,1.02526212,2812.3,2811.9,0.82]
[1645244457653,1.02526212,2812.3,2811.9,1.82]
[1645244457847,1.02526212,2812.3,2811.9,0.82]
[1645244458553,1.02526212,2812.3,2811.9,0.52]
[1645244459350,1.50957766,2812.2,2811.9,0.52]
[1645244460049,1.02526212,2812.3,2811.9,0.52]
[1645244462599,1.50959212,2812.2,2812.1,0.01350281]
[1645244463901,1.50876679,2812.2,2812.1,0.01350281]
[1645244464101,1.01041511,2812.3,2812.1,0.01350281]
[1645244467654,1.01041511,2812.3,2812.0,0.02639904]
[1645244472148,1.025234,2812.3,2811.9,0.82]
[1645244472649,1.025234,2812.3,2811.9,0.52]
[1645244474250,1.025234,2812.3,2811.9,0.82]
[1645244474849,1.025234,2812.3,2811.9,0.52]
[1645244475808,1.025234,2812.3,2811.9,0.47]
[1645244477104,1.025234,2812.3,2811.7,0.90132815]
[1645244477105,3.75704916,2812.2,2811.7,0.90132815]
[1645244477310,3.75704916,2812.2,2811.5,0.52]
[1645244477507,3.75704916,2812.2,2811.2,0.00223934]
[1645244477706,4.60786093,2812.2,2811.2,0.00223934]
[1645244477904,4.60786093,2812.2,2811.0,0.90132815]
[1645244477905,0.96540673,2811.9,2811.0,0.90132815]
[1645244478210,0.87687854,2811.2,2811.0,0.90132815]
[1645244478403,0.87687854,2811.2,2810.9,1.20132815]
[1645244478605,0.87687854,2811.2,2810.9,1.50132815]
[1645244478805,0.87687854,2811.2,2810.9,2.50132815]
[1645244479248,3.2718,2811.7,2810.9,1.50132815]
[1645244479450,3.2718,2811.7,2811.0,1.90132815]
[1645244479748,3.2718,2811.7,2811.0,1.20132815]
[1645244479948,3.2718,2811.7,2811.0,2.20132815]
[1645244480149,3.75704916,2811.6,2811.0,2.20132815]
[1645244480549,3.75704916,2811.6,2811.2,0.00223906]
[1645244480754,0.91106103,2811.4,2811.2,0.00223906]
[1645244481549,0.91106103,2811.4,2811.0,1.0]
[1645244481751,0.91106103,2811.4,2811.2,0.00219706]
[1645244482754,0.91106103,2811.4,2810.8,0.90132815]
[1645244483013,0.91106103,2811.4,2811.2,0.00219706]
[1645244484004,0.91106103,2811.4,2810.7,0.3]
[1645244484204,1.0061968,2810.8,2810.7,0.3]
[1645244484603,1.2356,2811.4,2810.7,0.3]
[1645244484805,3.75704916,2811.3,2810.6,1.3]
[1645244485209,1.51017304,2811.2,2810.4,1.2249]
[1645244485407,3.75704916,2811.1,2810.8,0.00184674]
[1645244485605,1.51017304,2811.0,2810.8,4.674e-05]
[1645244485805,0.8897325,2811.1,2810.8,4.674e-05]
[1645244486011,1.5102495,2811.0,2810.8,4.674e-05]
[1645244486208,22.00715866,2811.0,2810.8,4.674e-05]
[1645244486406,22.00715866,2811.0,2809.8,1.15519741]
[1645244486407,1.5102495,2810.9,2809.8,1.15132815]
[1645244486609,5.26729866,2810.9,2809.8,1.15519741]
[1645244486850,1.5102495,2810.8,2809.8,1.15519741]
[1645244487053,3.75704916,2810.9,2809.8,0.25386926]
[1645244487251,3.75704916,2810.9,2809.8,0.00386926]
[1645244487252,0.89535907,2810.3,2809.8,0.00386926]
[1645244488952,0.89535907,2810.3,2809.9,0.00118703]
[1645244489851,0.89535907,2810.3,2809.8,0.00386926]
[1645244490052,0.89535907,2810.3,2809.8,0.89362926]
[1645244490257,7.05694916,2810.7,2810.0,0.00223955]
[1645244490516,3.2999,2810.7,2810.0,0.00223955]
[1645244491103,3.2999,2810.7,2809.8,1.74667926]
[1645244491309,1.02588318,2810.6,2809.8,1.74667926]
[1645244491505,1.02588318,2810.6,2810.2,0.00223944]
[1645244492305,1.02588318,2810.6,2809.8,1.74667926]
[1645244492607,1.02588318,2810.6,2810.3,0.00223942]
[1645244493605,1.02588318,2810.6,2810.1,0.3]
[1645244493809,1.02588318,2810.6,2810.3,0.0022394]
[1645244494648,1.02588318,2810.6,2810.1,0.3]
[1645244495050,1.02588318,2810.6,2810.3,0.0022394]
[1645244495950,1.02588318,2810.6,2810.1,0.3]
[1645244496149,1.02588318,2810.6,2810.3,0.0022394]
[1645244497151,1.02588318,2810.6,2810.1,0.3]
[1645244497352,1.02588318,2810.6,2810.3,0.0022394]
[1645244497552,1.02588318,2810.6,2810.4,0.01311852]
[1645244498407,2.8282,2811.4,2810.4,0.53311852]
[1645244498603,7.5815,2811.2,2810.4,0.5353579]
[1645244498807,2.8282,2811.4,2810.4,0.5353579]
[1645244499007,2.8282,2811.4,2810.5,6.497]
[1645244499202,2.8282,2811.4,2810.6,1.40946]
[1645244499403,2.8282,2811.4,2810.6,1.52]
[1645244499602,2.8282,2811.4,2810.6,1.82]
[1645244499900,2.8282,2811.4,2810.7,0.00223933]
[1645244500102,1.15794525,2811.1,2810.8,0.52]
[1645244500303,1.15794525,2811.1,2810.8,0.82]
[1645244501503,2.8282,2811.4,2810.8,0.82]
[1645244501750,2.8282,2811.4,2810.9,0.3]
[1645244501949,2.8282,2811.4,2811.0,0.52]
[1645244502145,0.01459654,2811.2,2811.0,0.52]
[1645244502345,0.01459654,2811.2,2811.0,0.82]
[1645244502545,1.10150373,2811.1,2811.0,0.82]
[1645244503049,1.10150373,2811.1,2811.0,0.52]
[1645244504258,1.10150373,2811.1,2810.7,0.00223654]
[1645244504449,1.10150373,2811.1,2810.5,0.52]
[1645244504649,3.75704916,2811.0,2810.7,0.00223934]
[1645244505047,1.10150373,2811.1,2810.7,0.00223934]
[1645244505509,1.10150373,2811.1,2810.5,0.52]
[1645244505698,1.16942174,2810.6,2810.5,0.52]
[1645244509105,3.7716457,2811.2,2810.5,0.52]
[1645244509106,0.01459654,2811.2,2810.5,0.52]
[1645244509755,0.01369033,2811.2,2810.5,0.52]
[1645244509954,0.01369033,2811.2,2810.5,1.14266]
[1645244510153,0.01369033,2811.2,2810.5,0.52]
[1645244510356,1.05371057,2810.7,2810.5,0.52]
[1645244511860,1.05371057,2810.7,2810.5,0.00223934]
[1645244512256,0.01449709,2810.6,2810.5,0.00223934]
[1645244512859,0.01449709,2810.6,2810.1,1.1972]
[1645244513116,0.01449709,2810.6,2810.4,0.00223936]
[1645244514112,0.01449709,2810.6,2810.2,1.88964]
[1645244514312,0.01449709,2810.6,2810.4,0.00223938]
[1645244515111,0.01449709,2810.6,2810.2,1.88964]
[1645244515312,0.01449709,2810.6,2810.2,2.40964]
[1645244515516,0.01449709,2810.6,2810.4,0.00203043]
[1645244515917,0.01449709,2810.6,2810.5,0.52]
[1645244516415,0.01449709,2810.6,2810.5,0.82]
[1645244517454,0.01449709,2810.6,2810.5,1.82]
[1645244517751,1.00615408,2810.9,2810.5,1.82]
[1645244518350,1.00615408,2810.9,2810.5,0.82]
[1645244519151,1.00615408,2810.9,2810.6,0.00203036]
[1645244519355,0.98308747,2810.9,2810.6,0.00203036]
[1645244520052,0.98308747,2810.9,2810.5,0.82]
[1645244521314,0.98308747,2810.9,2810.5,0.52]
[1645244521714,0.98308747,2810.9,2810.5,0.51846079]
[1645244522115,0.98308747,2810.9,2810.7,0.02777691]
[1645244523816,0.98308747,2810.9,2810.7,0.03001372]
[1645244524853,0.98308747,2810.9,2810.7,0.02777691]
[1645244525054,0.98308747,2810.9,2810.7,0.02980515]
[1645244526050,0.98308747,2810.9,2810.7,0.02777691]
[1645244526250,0.98308747,2810.9,2810.7,0.02980515]
[1645244526450,3.75704916,2810.8,2810.7,0.02980515]
[1645244526652,1.51026732,2810.8,2810.7,0.02980515]
[1645244527252,1.51026732,2810.8,2810.7,0.02777691]
[1645244529900,0.98308747,2810.9,2810.7,0.02777691]
[1645244530404,1.510242,2810.8,2810.7,0.02777691]
[1645244531002,0.98308747,2810.9,2810.7,0.02777691]
[1645244532148,1.52464432,2810.8,2810.2,1.42132815]
[1645244532349,0.01440885,2810.8,2810.7,0.00205874]
[1645244532650,1.52462861,2810.8,2810.7,0.00205874]
[1645244533054,1.52463226,2810.8,2810.7,0.00205874]
[1645244533250,1.52463226,2810.8,2810.3,1.20132815]
[1645244533251,1.52463226,2810.8,2810.3,1.50132815]
[1645244533454,1.07554567,2810.4,2810.3,1.50132815]
[1645244533651,1.07554567,2810.4,2810.3,0.6]
[1645244533851,1.07554567,2810.4,2810.3,1.3]
[1645244534253,1.07554567,2810.4,2810.2,2.02132815]
[1645244534653,1.07554567,2810.4,2810.2,2.02338259]
[1645244535705,1.07554567,2810.4,2810.3,0.90132815]
[1645244535901,1.07554567,2810.4,2810.3,1.20132815]
[1645244536499,1.07554567,2810.4,2810.3,0.3]
[1645244536900,0.01440885,2810.8,2810.2,2.02132815]
[1645244537099,1.51025205,2810.7,2810.2,2.02338325]
[1645244537304,0.01440885,2810.8,2810.3,0.90132815]
[1645244537502,0.01440885,2810.8,2810.3,1.42132815]
[1645244537701,0.01434917,2810.5,2810.3,2.42132815]
[1645244537901,0.96992673,2810.4,2810.3,1.42132815]
[1645244538101,0.96992673,2810.4,2810.3,0.52]
[1645244538306,0.96992673,2810.4,2810.3,0.82205508]
[1645244539364,0.96992673,2810.4,2810.3,0.82]
[1645244539967,0.96992673,2810.4,2810.2,0.90338325]
[1645244540163,0.96992673,2810.4,2810.2,0.3020551]
[1645244540365,0.96992673,2810.4,2810.1,1.50132815]
[1645244540767,0.96992673,2810.4,2810.2,0.00205502]
[1645244541365,0.96992673,2810.4,2810.2,0.90338317]
[1645244541565,0.96992673,2810.4,2810.2,0.90132815]
[1645244541971,0.96992673,2810.4,2810.2,0.90338317]
[1645244542166,0.96992673,2810.4,2810.2,1.79302317]
[1645244542369,0.01434917,2810.5,2810.3,0.52]
[1645244542766,0.01434917,2810.5,2810.3,1.72132815]
[1645244543012,0.01434917,2810.5,2810.3,2.72338313]
[1645244543405,1.01849186,2810.5,2810.3,3.02338313]
[1645244544001,1.01745029,2810.5,2810.3,3.02338313]
[1645244544302,1.01745029,2810.5,2810.3,3.02338315]
[1645244544501,1.01745029,2810.5,2810.3,2.02338315]
[1645244544702,1.01745029,2810.5,2810.3,0.002055]
[1645244545304,1.01745029,2810.5,2810.2,1.50132815]
[1645244545502,1.01745029,2810.5,2810.3,0.52186849]
[1645244545802,1.01745029,2810.5,2810.3,1.72319664]
[1645244546402,1.01745029,2810.5,2810.3,1.42132815]
[1645244546606,1.01745029,2810.5,2810.3,0.52186849]
[1645244547249,1.01745029,2810.5,2810.3,1.42319664]
[1645244547649,1.01745029,2810.5,2810.3,1.42132815]
[1645244547851,1.01745029,2810.5,2810.3,1.42320293]
[1645244548755,1.01745029,2810.5,2810.3,1.42132815]
[1645244549150,1.01745029,2810.5,2810.3,2.02320293]
[1645244549348,1.01745029,2810.5,2810.3,3.02320293]
[1645244549951,0.0133076,2810.5,2810.3,3.02132815]
[1645244550251,0.0133076,2810.5,2810.3,3.02322887]
[1645244550518,0.0133076,2810.5,2810.4,0.90132815]
[1645244550704,0.0133076,2810.5,2810.4,1.42132815]
[1645244552309,1.14581527,2810.8,2810.4,1.4484349]
[1645244553111,4.1318,2811.1,2810.4,1.4484349]
[1645244553311,4.1318,2811.1,2810.4,2.3380149]
[1645244553312,1.51018657,2811.0,2810.4,2.3380149]
[1645244553516,1.51018657,2811.0,2810.4,1.4484349]
[1645244553916,1.51018657,2811.0,2810.6,0.00189675]
[1645244554111,1.51018657,2811.0,2810.7,0.52]
[1645244554953,1.02625893,2810.9,2810.7,0.52]
[1645244555155,1.51018657,2810.8,2810.7,0.52189595]
[1645244555756,1.02625893,2810.9,2810.7,0.52189595]
[1645244555959,1.51018364,2810.8,2810.7,0.52]
[1645244556156,1.51018364,2810.8,2810.7,0.51847541]
[1645244556357,1.51018364,2810.8,2810.7,0.52037135]
[1645244557257,1.51018364,2810.8,2810.7,0.51847541]
[1645244562058,1.52453115,2810.8,2810.7,0.51847541]
[1645244565504,1.52452444,2810.8,2810.7,0.51847541]
[1645244569253,1.52452444,2810.8,2810.4,0.90132815]
[1645244569459,1.51017693,2810.7,2810.6,0.00189665]
[1645244570457,0.01434751,2810.8,2810.6,0.52]
[1645244570657,1.51023039,2810.7,2810.6,0.52]
[1645244571055,0.01434751,2810.8,2810.6,0.52]
[1645244571856,0.99060644,2810.9,2810.6,0.52189666]
[1645244572059,0.01434751,2810.8,2810.6,0.52189666]
[1645244572856,0.01434751,2810.8,2810.6,0.52]
[1645244573111,0.01434751,2810.8,2810.6,1.42322482]
[1645244573507,0.01434751,2810.8,2810.6,0.52189667]
[1645244573905,0.01434751,2810.8,2810.6,1.42322482]
[1645244574105,0.01434751,2810.8,2810.6,0.52]
[1645244574315,0.01434751,2810.8,2810.6,0.52189667]
[1645244574906,0.01434751,2810.8,2810.6,1.42322482]
[1645244575305,0.01434751,2810.8,2810.6,0.52]
[1645244575508,0.01434751,2810.8,2810.6,0.52189667]
[1645244575907,0.01434751,2810.8,2810.6,1.42322482]
[1645244576509,0.01434751,2810.8,2810.6,1.42132815]
[1645244576752,0.01434751,2810.8,2810.6,1.42322481]
[1645244577554,1.09238845,2811.0,2810.6,1.42322481]
[1645244577755,1.51013518,2810.9,2810.6,1.42132815]
[1645244577956,1.51013518,2810.9,2810.6,1.42322481]
[1645244578560,1.51013518,2810.9,2810.6,0.52189666]
[1645244578957,1.51013518,2810.9,2810.6,0.52]
[1645244579157,1.51013518,2810.9,2810.6,0.52189665]
[1645244580159,1.51013518,2810.9,2810.6,0.52]
[1645244580360,1.09238845,2811.0,2810.6,0.52189665]
[1645244581201,1.09238845,2811.0,2810.6,0.52]
[1645244581503,2.99788858,2811.1,2810.7,0.00189663]
[1645244581708,2.99788858,2811.1,2810.8,0.52]
[1645244581709,0.01388858,2811.1,2810.8,0.52]
[1645244581909,0.01388858,2811.1,2810.9,0.90132815]
[1645244582104,7.5437,2811.7,2811.0,1.42132815]
[1645244582304,3.75704916,2811.9,2811.1,0.52]
[1645244582510,1.08509914,2811.9,2811.1,0.52]
[1645244582705,1.08509914,2811.9,2811.1,0.82]
[1645244582904,1.08509914,2811.9,2811.1,2.61057815]
[1645244583707,1.08509914,2811.9,2811.2,0.8893]
[1645244583905,1.08509914,2811.9,2811.3,0.52]
[1645244586653,0.00546061,2812.1,2811.3,0.52]
[1645244587058,7.27680665,2812.3,2811.3,0.52]
[1645244587059,0.00546061,2812.2,2811.6,6.497]
[1645244587260,0.00546061,2812.2,2811.7,0.52]
[1645244587457,0.1778,2813.0,2812.0,6.497]
[1645244587458,0.00546061,2812.5,2812.0,6.497]
[1645244587666,0.00758239,2812.6,2812.1,0.52]
[1645244587856,0.00758239,2812.6,2812.1,1.82]
[1645244588421,0.00546061,2812.9,2812.1,1.82]
[1645244588422,0.00546061,2812.9,2812.1,0.82]
[1645244588620,0.67301177,2813.0,2812.1,0.82]
[1645244588822,0.18306061,2813.1,2812.1,0.82]
[1645244588823,0.01304293,2812.9,2812.1,0.82]
[1645244589422,0.01304293,2812.9,2812.2,0.88902]
[1645244589620,0.01304293,2812.9,2812.3,0.52]
[1645244589821,0.00546061,2812.9,2812.3,0.52]
[1645244590423,1.09875886,2812.8,2812.3,0.52]
[1645244590824,1.09875886,2812.8,2812.4,0.88895]
[1645244591956,1.09875886,2812.8,2812.5,0.52]
[1645244592356,1.09875886,2812.8,2812.6,0.8889]
[1645244592557,1.09875886,2812.8,2812.5,0.82]
[1645244593157,1.04875886,2812.8,2812.5,0.82]
[1645244594960,1.04875886,2812.8,2812.5,0.52]
[1645244601752,0.99875886,2812.8,2812.5,0.52]
[1645244604506,0.01493501,2812.9,2812.5,0.52]
[1645244604901,0.01493501,2812.9,2812.5,0.82]
[1645244605106,0.01493501,2812.9,2812.6,0.3]
[1645244607456,1.00350718,2813.0,2812.6,0.3]
[1645244607858,1.00350718,2813.0,2812.5,0.52]
[1645244608257,1.00350718,2813.0,2812.5,0.82]
[1645244608462,1.00350718,2813.0,2812.6,0.3]
[1645244609257,0.02073341,2813.1,2812.7,0.82]
[1645244609457,0.02073341,2813.1,2812.7,0.52]
[1645244609458,0.00546061,2812.9,2812.7,0.52]
[1645244609656,0.0152728,2813.1,2812.7,0.82]
[1645244609657,0.02073341,2813.1,2812.7,0.82]
[1645244609857,0.02073341,2813.1,2812.7,1.12]
[1645244612102,0.00546061,2813.1,2812.8,0.01417453]
[1645244612304,2.84976061,2813.2,2812.9,0.52]
[1645244612503,8.88180636,2813.1,2812.9,0.52]
[1645244612703,8.83180636,2813.1,2812.9,0.52]
[1645244614456,8.83180636,2813.1,2812.9,0.82]
[1645244615059,8.83180636,2813.1,2812.9,0.52]
[1645244617559,8.83180636,2813.1,2813.0,0.04185644]
[1645244620206,0.92051028,2813.3,2813.0,0.04185644]
[1645244620409,0.91504967,2813.3,2813.0,0.04185644]
[1645244620610,0.00190424,2813.4,2813.0,0.04185644]
[1645244620908,0.00546061,2813.5,2813.0,0.04185644]
[1645244621111,1.51104598,2813.4,2813.0,0.04185644]
[1645244621763,1.17328024,2813.3,2813.0,0.04185644]
[1645244621966,1.50914135,2813.2,2813.0,0.04185644]
[1645244622364,0.01364095,2813.1,2812.9,0.52]
[1645244624271,1.15516571,2813.3,2812.9,0.52]
[1645244624470,1.50917324,2813.2,2812.9,0.52]
[1645244625070,1.50917324,2813.2,2812.9,0.82]
[1645244625270,1.50917324,2813.2,2812.9,1.12]
[1645244626908,0.00546061,2813.5,2812.9,1.12]
[1645244627109,1.5091179,2813.4,2812.9,1.12]
[1645244627308,1.51102242,2813.4,2812.9,1.12]
[1645244627508,2.54131789,2813.4,2812.9,1.12]
[1645244627709,0.01230766,2813.1,2812.9,1.12]
[1645244628509,0.01230766,2813.1,2812.9,0.52]
[1645244628709,0.01230766,2813.1,2812.9,1.12]
[1645244629008,0.01230766,2813.1,2812.9,0.52]
[1645244629261,0.01230766,2813.1,2812.9,0.82]
[1645244629463,0.01230766,2813.1,2812.9,1.12]
[1645244629660,0.01230766,2813.1,2812.9,0.82]
[1645244630057,0.01230766,2813.1,2812.9,1.12]
[1645244631566,0.00190452,2813.4,2812.9,1.12]
[1645244631769,8.86094268,2813.5,2813.1,6.497]
[1645244631964,1.50897407,2813.4,2813.2,0.52]
[1645244632165,1.51087859,2813.4,2813.2,1.52]
[1645244632362,0.00190452,2813.4,2813.2,1.52]
[1645244633011,8.86640329,2813.5,2813.2,1.52]
[1645244633217,0.00190458,2813.4,2813.3,2.07712]
[1645244633411,0.00190458,2813.4,2813.3,2.89712]
[1645244633807,0.00190458,2813.4,2813.3,7.65416916]
[1645244634206,0.00546061,2813.6,2813.3,7.65416916]
[1645244634413,0.00546061,2813.7,2813.4,2.7771157]
[1645244634610,0.00190456,2813.5,2813.4,2.7771157]
[1645244635406,0.00761709,2813.9,2813.4,2.7771157]
[1645244635407,0.00546061,2813.9,2813.4,2.7771157]
[1645244635609,1.50879381,2813.8,2813.5,1.40857]
[1645244635908,1.50879381,2813.8,2813.6,1.77703]
[1645244636109,0.00546061,2814.2,2813.7,10.77404916]
[1645244636309,1.50868302,2814.1,2813.8,1.0]
[1645244636508,0.00546061,2814.1,2813.9,4.27704916]
[1645244636763,0.00546061,2814.6,2814.0,3.75704916]
[1645244636965,1.50855315,2814.5,2814.1,0.52]
[1645244639266,0.00209532,2814.4,2814.1,0.52]
[1645244640367,0.00209534,2814.4,2814.1,0.52]
[1645244641414,1.50855315,2814.5,2814.1,0.82]
[1645244641612,0.00209534,2814.4,2814.1,1.12]
[1645244642015,0.00209534,2814.4,2814.1,0.52]
[1645244642311,0.00209534,2814.4,2814.3,0.01607527]
[1645244642512,1.50855315,2814.5,2814.3,0.01607527]
[1645244642910,1.51064845,2814.5,2814.3,0.01607527]
[1645244643711,1.50855315,2814.5,2814.3,0.01607527]
[1645244644111,1.51060855,2814.5,2814.3,0.01607527]
[1645244645057,1.50855315,2814.5,2814.3,0.01607527]
[1645244645256,1.51060855,2814.5,2814.3,0.01607527]
[1645244645858,1.51060855,2814.5,2814.2,0.01462996]
[1645244646060,1.51060855,2814.5,2814.3,1.4084]
[1645244646260,1.50855315,2814.5,2814.3,1.4084]
[1645244646463,0.00546061,2814.6,2814.4,0.3]
[1645244646659,10.02147009,2814.7,2814.4,0.3]
[1645244646858,1.50846513,2814.6,2814.4,0.52]
[1645244647461,8.86640329,2814.7,2814.4,0.52]
[1645244647660,0.00205857,2814.6,2814.5,0.88837]
[1645244648513,0.00205857,2814.6,2814.4,0.55141739]
[1645244648712,9.79136835,2814.7,2814.4,0.55141739]
[1645244648907,9.78796629,2814.7,2814.4,0.55141739]
[1645244649309,9.78796629,2814.7,2814.4,0.85141739]
[1645244649509,8.86300123,2814.7,2814.4,1.73980739]
[1645244649908,8.86094268,2814.7,2814.4,1.73980739]
[1645244650110,8.86300123,2814.7,2814.5,1.77655]
[1645244650310,0.00205855,2814.7,2814.6,0.52]
[1645244651109,1.5083692,2814.8,2814.7,0.88825]
[1645244651310,1.51042695,2814.8,2814.7,1.40825]
[1645244651965,0.00205775,2814.8,2814.7,1.40825]
[1645244652165,0.00546061,2814.9,2814.7,1.40825]
[1645244652371,0.00205771,2814.9,2814.8,0.88826]
[1645244652568,0.00205771,2814.9,2814.8,2.66475]
[1645244653367,1.50834503,2815.0,2814.8,2.66475]
[1645244653567,0.00546061,2815.3,2814.8,2.66475]
[1645244653568,1.50834503,2814.9,2814.8,2.66475]
[1645244653967,0.00205768,2815.0,2814.8,2.66475]
[1645244654168,0.00205768,2815.0,2814.8,3.48475]
[1645244654369,1.51040271,2815.0,2814.8,3.48475]
[1645244654567,0.86296714,2815.4,2814.8,3.48475]
[1645244654568,1.50834503,2815.1,2814.8,3.48475]
[1645244654769,1.50834503,2815.1,2815.0,0.88819]
[1645244654770,0.00546061,2815.1,2815.0,0.88819]
[1645244654974,1.50827054,2815.1,2815.0,1.40819]
[1645244655370,1.50827054,2815.2,2815.0,1.40819]
[1645244655617,1.50827054,2815.1,2815.0,1.40819]
[1645244655818,1.50827054,2815.2,2815.0,1.40819]
[1645244656020,1.51032824,2815.2,2815.0,1.40819]
[1645244656618,1.51032824,2815.2,2815.0,3.18453]
[1645244656819,4.16643808,2814.9,2814.8,2.07634]
[1645244658022,4.16643808,2814.9,2814.8,2.59634]
[1645244658626,4.16643808,2814.9,2814.8,3.48453]
[1645244661065,4.16643808,2814.9,2814.4,1.77671]
[1645244661265,4.17189869,2814.9,2814.0,1.3166]
[1645244661469,4.17189869,2814.9,2814.0,1.139]
[1645244662063,0.00205792,2814.6,2814.1,7.0]
[1645244662264,0.00751853,2814.6,2814.0,1.139]
[1645244662467,0.00751853,2814.6,2814.1,0.3]
[1645244663025,0.00546061,2814.6,2814.1,0.3]
[1645244663215,0.00205795,2814.5,2814.1,1.3]
[1645244663419,0.00205795,2814.5,2814.1,0.3]
[1645244663616,0.00205795,2814.5,2814.1,1.3]
[1645244664014,0.00205795,2814.5,2814.2,0.8885]
[1645244664414,0.00546061,2814.6,2814.2,0.8885]
[1645244664616,0.00205797,2814.4,2814.2,1.1885]
[1645244665021,1.3288,2815.1,2814.2,1.1885]
[1645244665022,1.30913362,2815.1,2814.2,1.1885]
[1645244665217,1.13153362,2815.1,2814.2,1.1885]
[1645244665816,1.13942717,2814.9,2814.2,1.1885]
[1645244666959,0.0010488,2815.0,2814.4,0.88843]
[1645244667163,0.0010488,2815.0,2814.5,4.2306269]
[1645244667360,0.0010488,2815.0,2814.6,1.0]
[1645244667560,0.0010488,2815.0,2814.7,0.52]
[1645244667759,0.0429719,2815.5,2814.7,0.52]
[1645244668067,0.00104889,2815.0,2814.7,0.52]
[1645244668258,0.00104889,2815.0,2814.8,3.19749]
[1645244668459,0.00104889,2815.0,2814.9,3.7106269]
[1645244668659,0.00104889,2815.0,2814.9,1.49427616]
[1645244668859,0.00104889,2815.0,2814.9,2.49427616]
[1645244669061,0.0429719,2815.5,2814.9,2.40816]
[1645244669261,0.00224068,2815.1,2814.9,2.40816]
[1645244669462,0.00224068,2815.1,2815.0,1.0]
[1645244669660,0.00224068,2815.1,2815.0,0.52]
[1645244669860,0.00224068,2815.1,2815.0,1.52]
[1645244670062,0.00224068,2815.1,2815.0,0.82]
[1645244670268,0.0429719,2815.5,2815.0,0.82]
[1645244670269,0.0429719,2815.5,2815.1,0.88794]
[1645244670542,0.0429719,2815.5,2815.2,4.2306269]
[1645244670931,0.0429719,2815.5,2815.3,1.0]
[1645244671131,0.0429719,2815.5,2815.4,0.52]
[1645244671332,0.0429719,2815.5,2815.4,5.1185369]
[1645244671537,0.0142115,2815.6,2815.4,5.20465306]
[1645244671738,0.00406164,2816.0,2815.5,22.99757968]
[1645244671936,0.00406164,2816.0,2815.9,6.497]
[1645244672133,0.00406164,2816.0,2815.9,10.7276269]
[1645244672333,0.00406164,2816.0,2815.9,12.0276269]
[1645244672832,6.9164686,2817.1,2816.1,1.19317127]
[1645244673033,1.5073825,2817.0,2816.5,0.53256]
[1645244673235,1.5073825,2817.0,2816.2,1.23722688]
[1645244673431,1.5073825,2817.0,2816.3,0.52]
[1645244673633,0.7073825,2817.0,2816.3,0.52]
[1645244673835,0.7073825,2817.0,2816.3,0.82]
[1645244674033,3.90993956,2817.1,2816.3,0.82]
[1645244674273,3.90993956,2817.1,2816.5,1.42015]
[1645244674471,3.90993956,2817.1,2816.6,1.40759]
[1645244674870,3.90993956,2817.1,2816.6,1.70759]
[1645244675071,3.90993956,2817.1,2816.6,1.82]
[1645244675276,0.00207003,2817.0,2816.6,0.82]
[1645244675474,0.00207003,2817.0,2816.8,1.77506]
[1645244675475,0.00914099,2817.0,2816.8,1.77506]
[1645244675674,0.00914099,2817.0,2816.9,0.52]
[1645244675879,0.00914099,2817.0,2816.9,0.82]
[1645244676272,0.00707096,2817.0,2816.9,0.82]
[1645244676474,0.84641721,2817.0,2816.9,0.82]
[1645244676676,0.00707096,2817.0,2816.9,0.82]
[1645244677376,0.00707096,2817.0,2816.9,2.70752]
[1645244677578,0.00707096,2817.0,2816.9,1.70752]
[1645244678217,0.00707096,2817.0,2816.9,2.70752]
[1645244678817,0.00707096,2817.0,2816.9,0.52]
[1645244679814,0.00707096,2817.0,2816.9,1.40752]
[1645244680422,0.00707096,2817.0,2816.9,0.52]
[1645244681022,0.85682078,2817.0,2816.9,0.52]
[1645244683370,0.00707096,2817.0,2816.9,0.52]
[1645244683965,0.0299619,2817.4,2816.9,0.52]
[1645244684266,1.18665605,2817.0,2816.9,0.52]
[1645244685609,1.18665605,2817.0,2816.9,0.45538114]
[1645244686609,1.20079797,2817.0,2816.9,0.45538114]
[1645244687612,1.20079797,2817.0,2816.4,0.88777]
[1645244688612,1.20079797,2817.0,2816.4,1.77544]